Cogmind - Beta 13 X1 @@@ ROGUE MODE // 2023.06.23 @ 20:40:27 Player: Cracklepappy Result: Destroyed by S-27 Virus with Autogun Performance ------------- Evolutions (6) 3000 Regions Visited (32) 6400 Robots Destroyed (476) 2380 Value Destroyed (21662) 21662 Prototype IDs (63) 1260 Alien Tech Used (0) 0 Bonus (15260) 15260 TOTAL SCORE: 49962 Bonus ------- High Alert Combat Kills 2952 Follower Combat Kills 5382 Entered Garrisons 1800 Used RIF Installer 5000 Network Hubs Disabled 400 Met Zhirov 300 Built Enhanced Grunts 300 Met R17 at Cetus 500 Friendly Fire -1374 Cogmind --------- Core Integrity 0/1150 Matter 300/300 Energy 54/100 System Corruption 41% Temperature Cool (0) Movement Core (50) Location -4/Garrison Parts ------- > --- POWER (3) -------- (None) > --- PROPULSION (6) --- (None) > --- UTILITY (8) ------ (None) > --- WEAPON (2) ------- (None) > --- INVENTORY (5) ---- Advanced Heat Sink Energy Well (350) Relay Coupler [Proto] (9) Relay Coupler [Proto] (9) Relay Coupler [Proto] (9) Peak State ------------ > --- POWER ------------ Quantum Reactor Quantum Reactor Quantum Reactor > --- PROPULSION ------- Armored Heavy Treads Centrium Heavy Treads Centrium Heavy Treads > --- UTILITY ---------- Advanced Heat Sink Improved Coolant Injector Huge Storage Unit Improved Targeting Computer Advanced Target Analyzer Centrium Medium Armor Plating Centrium Medium Armor Plating Improved Force Field > --- WEAPON ----------- Hypervelocity Mass Driver Hypervelocity Mass Driver > --- INVENTORY -------- Centrium Heavy Treads Advanced Cooling System Energy Well Advanced Matter Compressor Long-range Sensor Array Improved Signal Interpreter Relay Coupler [NC] Relay Coupler [Sentry] Relay Coupler [Proto] Relay Coupler [Proto] Relay Coupler [Proto] Relay Coupler [Proto] Relay Coupler [Proto] Relay Coupler [Proto] Skeleton Box Enhanced Nova Cannon Enhanced Nova Cannon Advanced KE Penetrator Heavy Mass Driver Heavy Missile Launcher Improved Remote Datajack Multitool [Rating: 155] Favorites ----------- Power Quantum Reactor Engine Light Ion Engine Power Core Meta Core Reactor Quantum Reactor Propulsion Light Treads Treads Light Treads Leg Flexi-carbon Leg Wheel Wheel Hover Unit Aerolev Unit Utility Huge Storage Unit Device Improved Transmission Jammer Storage Huge Storage Unit Processor Advanced Targeting Computer Hackware Relay Coupler [Sentry] Protection Medium Armor Plating Weapon Advanced Beam Cannon Energy Gun Improved Medium Laser Energy Cannon Advanced Beam Cannon Ballistic Gun Heavy Assault Rifle Ballistic Cannon Heavy Mass Driver Launcher Subdweller Shrapnel Launcher Special Weapon Improved Remote Datajack Piercing Weapon Makeshift Spear Build | -11 -10 -10 -9 -9 -9 -8 -8 -8 -8 -8 -7 -7 -6 -6 -5 -5 -5 -5 -5 -5 -5 -5 -5 -5 -5 -5 -4 -4 -4 -4 -4 -4 ------- Run | Jun Mat Sub Mat Min Exi Min Mat Gar Mat Gar Fac Gar Fac Gar Fac Was Fac Gar Fac Gar Fac Ext Cet Arc Hub Gar Fac Was Fac Gar Fac Gar Slots Evolved 12 | . . . 2 . . . 2 . . . 2 . 2 . 2 . . . . . . . . . . . 2 . . . . . Power 2 | . . . . . . . . . . . . . 1 . . . . . . . . . . . . . 1 . . . . . Propulsion 4 | . . . 1 . . . . . . . 1 . . . 2 . . . . . . . . . . . . . . . . . Utility 6 | . . . 1 . . . 2 . . . 1 . 1 . . . . . . . . . . . . . 1 . . . . . Weapon . | . . . . . . . . . . . . . . . . . . . . . . . . . . . . . . . . . Parts Attached 518 | 8 17 22 31 . 10 2 9 21 2 24 17 28 31 48 6 14 4 18 2 20 3 19 11 . 3 14 11 6 19 28 48 22 Power 50 | 1 2 3 2 . . . 1 2 . 3 . 3 4 6 1 1 . 1 . 1 . . 2 . . . 3 . . 2 10 2 Engine 18 | 1 2 3 2 . . . 1 2 . . . . 3 3 . . . . . . . . . . . . . . . . 1 . Core 16 | . . . . . . . . . . 3 . 2 1 2 1 . . . . . . . . . . . . . . 2 5 . Reactor 16 | . . . . . . . . . . . . 1 . 1 . 1 . 1 . 1 . . 2 . . . 3 . . . 4 2 Propulsion 82 | 3 4 2 11 . 3 . 2 3 . 7 1 5 1 5 1 10 . 2 . 2 1 2 3 . . . . . 1 . 7 6 Treads 68 | 2 4 2 9 . 3 . 2 3 . 7 1 5 1 5 1 10 . 2 . 2 1 2 3 . . . . . 1 . 2 . Leg 4 | . . . . . . . . . . . . . . . . . . . . . . . . . . . . . . . 2 2 Wheel 8 | 1 . . . . . . . . . . . . . . . . . . . . . . . . . . . . . . 3 4 Hover 2 | . . . 2 . . . . . . . . . . . . . . . . . . . . . . . . . . . . . Flight . | . . . . . . . . . . . . . . . . . . . . . . . . . . . . . . . . . Utility 171 | 2 6 3 8 . . . 3 5 1 6 6 11 15 19 3 1 3 8 2 6 . 14 2 . 3 6 5 1 12 9 8 3 Device 97 | 1 1 . 2 . . . . 2 . 5 4 9 11 10 2 1 3 3 2 . . 13 1 . . 3 4 . 8 5 6 1 Storage 9 | 1 2 . . . . . 1 1 1 . 1 . . . . . . . . . . 1 . . . . . . . 1 . . Processor 11 | . . . 2 . . . 2 . . . . . . 3 . . . . . 1 . . . . . 2 1 . . . . . Hackware 12 | . . . . . . . . . . . 1 2 1 1 1 . . 2 . 1 . . . . . . . 1 . . . 2 Protection 42 | . 3 3 4 . . . . 2 . 1 . . 3 5 . . . 3 . 4 . . 1 . 3 1 . . 4 3 2 . Artifact . | . . . . . . . . . . . . . . . . . . . . . . . . . . . . . . . . . Weapon 215 | 2 5 14 10 . 7 2 3 11 1 8 10 9 11 18 1 2 1 7 . 11 2 3 4 . . 8 3 5 6 17 23 11 Energy Gun 2 | . . . 1 . . . . . . . . . . . . . . . . . . . . . . . . . . . 1 . Energy Cannon 68 | . 5 8 1 . . . . . . 4 5 6 6 6 . 1 . . . 1 . 1 2 . . . . 1 1 1 11 8 Ballistic Gun 39 | 2 . 1 5 . 5 1 1 5 1 1 1 . 2 . . 1 . 2 . . . . 1 . . . . . . 10 . . Ballistic Cannon 48 | . . . . . . . . . . . . . . 6 . . 1 4 . 6 1 2 1 . . 8 2 2 5 5 5 . Launcher 29 | . . 5 2 . . . 2 4 . 2 3 . 2 4 . . . 1 . . . . . . . . . . . 1 2 1 Special Weapon 24 | . . . . . 2 . . . . . 1 3 1 2 1 . . . . 4 1 . . . . . 1 2 . . 4 2 Impact Weapon . | . . . . . . . . . . . . . . . . . . . . . . . . . . . . . . . . . Slashing Weapon . | . . . . . . . . . . . . . . . . . . . . . . . . . . . . . . . . . Piercing Weapon 5 | . . . 1 . . 1 . 2 . 1 . . . . . . . . . . . . . . . . . . . . . . Special Melee Weapon . | . . . . . . . . . . . . . . . . . . . . . . . . . . . . . . . . . Unidentified Prototypes 18 | . 1 . 2 . . . 1 . . . 1 . 3 1 . 1 . 1 . . . 1 3 . . . . 1 . . 2 . Corrupted Parts 2 | . . . . . . . . . . . . . . . . . . . . . . . . . . . . . . . 1 1 System Corruption 5 | . . . . . . . . . . . . . . . . . . . . . . . . . . . . . . . 4 1 Parts Lost 59 | . . 5 2 . . . . 4 . 3 . . 2 3 . . . 2 . 2 . . . . 2 . . . . . 13 21 Power 13 | . . 1 . . . . . 1 . 1 . . 1 . . . . 1 . . . . . . . . . . . . 4 4 Propulsion 18 | . . . 2 . . . . 1 . . . . . 1 . . . . . . . . . . . . . . . . 4 10 Utility 16 | . . 2 . . . . . 1 . . . . 1 2 . . . 1 . 1 . . . . 2 . . . . . 4 2 Weapon 12 | . . 2 . . . . . 1 . 2 . . . . . . . . . 1 . . . . . . . . . . 1 5 Highest Loss Streak 14 | . . 1 1 . . . . 2 . 3 . . 1 1 . . . 1 . 1 . . . . 1 . . . . . 4 14 To Critical Strikes 2 | . . . . . . . . . . . . . . . . . . . . . . . . . . . . . . . 2 . Average Slot Usage (%) 87 | . 99 99 99 100 91 100 100 92 90 89 91 84 85 85 75 80 80 77 77 72 76 73 71 70 70 81 83 84 83 82 74 84 Engine 4 | . 14 13 11 11 11 11 9 9 9 . . . 1 5 3 . . . . . . . . . . . . . . . . . Core 2 | . . . . . . . . . . 8 7 3 5 2 6 6 5 5 5 5 5 5 1 . . . . . . 4 5 . Reactor 4 | . . . . . . . . . . . . 3 5 4 . 3 5 4 5 5 5 5 9 11 11 11 14 15 15 10 7 10 Treads 22 | . 27 28 32 33 33 33 27 27 27 27 30 24 20 20 16 16 20 16 16 16 17 16 16 17 17 17 15 15 14 15 11 4 Device 9 | . . . 4 . . . . 1 . 7 14 12 19 10 16 15 14 11 11 11 11 11 11 11 11 10 14 15 15 15 15 10 Storage 8 | . 14 14 11 11 11 11 9 9 9 9 7 7 6 6 5 5 5 5 5 5 5 5 5 5 5 5 5 5 5 5 5 4 Processor 6 | . . . 6 11 11 11 26 22 18 10 7 7 6 6 5 5 5 5 5 5 5 5 5 5 4 5 10 10 10 10 10 9 Hackware 2 | . . . . . . . . . . . . 1 . 5 6 10 10 12 11 5 5 5 5 5 5 . . 4 5 5 5 11 Protection 8 | . 13 13 10 11 11 11 9 6 9 9 7 7 6 12 5 5 5 4 5 6 5 5 5 5 6 16 10 5 4 5 4 . Energy Cannon 9 | . 27 27 3 . . . . . . 14 14 14 12 2 . 4 . . . . . . 3 . . . . . . . 1 8 Ballistic Gun 2 | . . . 16 22 13 21 18 15 18 3 . . . . . 4 . . . . . . . . . . . . . 7 . . Ballistic Cannon 2 | . . . . . . . . . . . . . . 4 5 . 4 4 5 5 10 8 2 5 5 10 10 8 9 . 3 . Naked Turns 9 | . . . . . . . . . . . . . . . . . . . . . . . . . . . . . . . . 9 Heaviest Build 192 | 12 58 66 67 58 58 58 63 88 128 145 148 153 173 176 159 154 147 147 136 147 147 157 172 166 166 176 192 188 183 178 175 144 Greatest Support 245 | 40 40 40 60 60 60 60 64 64 60 60 80 120 130 145 220 245 245 245 215 230 230 220 240 220 220 220 220 220 220 220 220 65 Greatest Overweight (x) 14 | . 6 1 1 . . . 1 1 2 2 1 3 1 1 . 1 . . . . . . . . . . . . 1 . 7 14 Average Overweight (x) . | . . 1 . . . . . . 1 2 1 1 1 . . . . . . . . . . . . . . . . . . 4 Largest Inventory Capacity 25 | 8 20 20 20 20 20 20 20 20 25 25 25 25 25 25 25 25 25 25 25 25 25 25 25 25 25 25 25 25 25 25 25 25 Average Capacity 22 | 7 12 20 20 20 20 20 20 20 24 25 25 25 25 25 25 25 25 25 25 25 25 25 25 25 25 25 25 25 25 25 25 24 Most Carried 25 | 8 20 20 20 20 20 20 20 20 25 25 25 25 25 25 25 25 25 25 25 25 25 25 25 25 25 25 25 25 25 25 25 25 Average Carried 22 | 6 11 19 19 20 19 20 19 19 24 24 24 24 24 24 24 24 24 24 24 24 24 24 24 25 24 24 24 24 24 24 23 23 Final Capacity 25 | 8 20 20 20 20 20 20 20 20 25 25 25 25 25 25 25 25 25 25 25 25 25 25 25 25 25 25 25 25 25 25 25 5 Final Carried 25 | 8 20 20 20 20 20 20 20 20 25 25 25 25 25 25 25 25 25 25 25 25 24 25 25 25 25 25 25 25 25 25 25 5 Class Distribution -------------------- 38% | Botlord-Mutant 37% | Mutant 13% | Bothacker-Mutant 8% | Scavenger-Mutant Dominant Class ---------------- Mutant | -10/Materials Mutant | -10/Subcaves Scavenger-Mutant | -9/Materials Scavenger-Mutant | -9/Mines Mutant | -9/Exiles Mutant | -8/Mines Mutant | -8/Materials Mutant | -8/Garrison Mutant | -8/Materials Scavenger-Mutant | -8/Garrison Mutant | -7/Factory Bothacker-Mutant | -7/Garrison Mutant | -6/Factory Bothacker-Mutant | -6/Garrison Botlord-Mutant | -5/Factory Botlord-Mutant | -5/Waste Botlord-Mutant | -5/Factory Botlord-Mutant | -5/Garrison Botlord-Mutant | -5/Factory Botlord-Mutant | -5/Garrison Botlord-Mutant | -5/Factory Botlord-Mutant | -5/Extension Commander-Mutant | -5/Cetus Botlord-Mutant | -5/Archives Botlord-Mutant | -5/Hub_04(d) Botlord-Mutant | -5/Garrison Botlord-Mutant | -4/Factory Botlord-Mutant | -4/Waste Botlord-Mutant | -4/Factory Botlord-Mutant | -4/Garrison Botlord-Mutant | -4/Factory Botlord-Mutant | -4/Garrison Resources | -11 -10 -10 -9 -9 -9 -8 -8 -8 -8 -8 -7 -7 -6 -6 -5 -5 -5 -5 -5 -5 -5 -5 -5 -5 -5 -5 -4 -4 -4 -4 -4 -4 ----------- Run | Jun Mat Sub Mat Min Exi Min Mat Gar Mat Gar Fac Gar Fac Gar Fac Was Fac Gar Fac Gar Fac Ext Cet Arc Hub Gar Fac Was Fac Gar Fac Gar Matter Collected 19635 | 320 132 644 728 27 226 85 160 867 . 530 225 300 463 1700 269 430 128 1652 13 921 105 758 206 . 435 1660 712 635 1747 1416 1745 396 Remotely 990 | . . . . . . . . . . . . . . . . . . . . . . . . . . . . . 344 430 216 . Salvage Created 23858 | 127 674 877 1273 . 242 34 240 947 . 728 547 346 2278 1305 198 1965 57 1509 13 496 127 758 . . 941 1497 751 458 1870 1559 1499 542 Parts 1137 | 11 46 47 90 . 6 2 15 61 . 44 30 21 104 50 8 55 6 45 3 27 5 39 . . 38 61 42 7 102 78 75 19 Haulers Intercepted 13 | . 2 . 3 . . . 1 . . . 1 . 1 . . . . . . . . . . . 2 . 1 . 1 . 1 . Recyclers Shooed 13 | . . . 2 . . . . . . . 2 . 4 . 1 . . . . . . . . . . . . . 2 . 2 . Parts Field Recycled . | . . . . . . . . . . . . . . . . . . . . . . . . . . . . . . . . . Retrieved Matter . | . . . . . . . . . . . . . . . . . . . . . . . . . . . . . . . . . Parts Self-Destructed 6 | . . 6 . . . . . . . . . . . . . . . . . . . . . . . . . . . . . . Prevented . | . . . . . . . . . . . . . . . . . . . . . . . . . . . . . . . . . Kills | -11 -10 -10 -9 -9 -9 -8 -8 -8 -8 -8 -7 -7 -6 -6 -5 -5 -5 -5 -5 -5 -5 -5 -5 -5 -5 -5 -4 -4 -4 -4 -4 -4 ------- Run | Jun Mat Sub Mat Min Exi Min Mat Gar Mat Gar Fac Gar Fac Gar Fac Was Fac Gar Fac Gar Fac Ext Cet Arc Hub Gar Fac Was Fac Gar Fac Gar Combat Hostiles Destroyed 393 | . 17 18 26 . 1 2 3 21 . 20 14 8 43 24 2 6 1 27 . 10 2 9 . . 12 31 9 2 24 23 28 10 Melee 1 | . . . . . . . . 1 . . . . . . . . . . . . . . . . . . . . . . . . Guns 52 | . . . 11 . 1 2 3 10 . 4 . . . . . 6 . . . . . . . . . . . . . 15 . . Cannons 262 | . 17 12 8 . . . . . . 9 5 7 35 14 2 . 1 24 . 10 2 9 . . 11 31 9 2 24 4 22 4 AOE 62 | . . 4 7 . . . . 10 . 7 9 . 2 9 . . . 3 . . . . . . . . . . . 4 3 4 Classes Destroyed 27 | 2 4 4 4 . . . . 2 . 1 1 1 1 3 . 1 . 2 . . . . . . . . . . 1 . . . Worker 18 | . . . 2 . . . . . . . . . . . . . . . . . . . . . 5 . 1 . 7 . 3 . Builder 7 | . . . 1 . . . . . . . 1 . 1 . . . . . . . . . . . . . 1 . 1 . 2 . Tunneler 5 | 3 1 . . . . . . . . . . . . . . . . . 1 . . . . . . . . . . . . . Hauler 13 | . 2 . 3 . . . 1 . . . 1 . 1 . . . . . . . . . . . 2 . 1 . 1 . 1 . Recycler 15 | 1 . . 1 . . . . . . . 1 . 2 . 1 . . . . . . 2 . . . . 1 . 3 . 3 . Mechanic 1 | . . . . . . . . . . . . . . . . . . . . . . . . . . . . . 1 . . . Operator 3 | . . . 1 . . . . . . . . . . . . . . . . . . 1 . . . . . . 1 . . . Turret 2 | . . 2 . . . . . . . . . . . . . . . . . . . . . . . . . . . . . . Watcher 15 | . 1 . 3 . . . . . . . . . . . . . 1 . 1 . . 1 . . 3 1 2 . 2 . . . Swarmer 87 | . 6 . 7 . . 2 1 6 . 7 9 3 13 2 . . . 5 . 2 . . . . . 5 3 . 2 . 10 4 Cutter 8 | . . . . . . . . 2 . . . . . 4 . . . 2 . . . . . . . . . . . . . . Saboteur 2 | . . . . . . . . . . . . . . . . . . 2 . . . . . . . . . . . . . . Grunt 134 | . 11 . 14 . 1 . 2 8 . 8 1 3 12 9 . . . 8 . 3 . 4 . . 5 17 3 . 3 12 5 5 Brawler 2 | . . . . . . . . . . . . . . 1 . . . . . . . . . . 1 . . . . . . . Duelist 3 | . . . . . . . . . . . 1 . 1 . . . . . . . . . . . . 1 . . . . . . Protector 3 | . . . . . . . . . . . . . . 1 . . . 1 . . . . . . . . . . . 1 . . Sentry 48 | . . . 5 . . . 1 3 . 3 . . 5 1 . . . 3 . 3 1 3 . . 3 3 2 . 2 7 3 . Demolisher 2 | . . . . . . . . . . . . . . 1 . . . . . . . . . . . . . . . 1 . . Specialist 6 | . . . . . . . . 2 . . 2 . . . . . . . . . . . . . . 2 . . . . . . Hunter 15 | . . . . . . . . . . . . . 2 1 . . 1 . . . . 1 . . . 2 . . 2 . 6 . Programmer 49 | . . . . . . . . . . 2 1 1 10 2 2 . . 3 . 2 1 . . . 3 1 1 . 15 1 4 . Behemoth 7 | . . . . . . . . . . . . 1 . 2 . . . 1 . . . 1 . . . . . . . 1 . 1 Compactor 8 | . . . . . . . . . . . . . . . . 6 . . . . . . . . . . . 2 . . . . Executioner 2 | . . . . . . . . . . . . . . . . . . 2 . . . . . . . . . . . . . . Artisan 1 | . . 1 . . . . . . . . . . . . . . . . . . . . . . . . . . . . . . Cobbler 1 | . . 1 . . . . . . . . . . . . . . . . . . . . . . . . . . . . . . Subdweller 18 | . . 18 . . . . . . . . . . . . . . . . . . . . . . . . . . . . . . Thug 1 | . . . . . . . . . . . . . . . . . . . . . . 1 . . . . . . . . . . Martyr 2 | . . . . . . . . . . . . . . . . 2 . . . . . . . . . . . . . . . . Best Kill Streak 10 | 2 4 4 5 . 1 2 3 7 . 5 4 3 6 6 2 2 1 6 2 3 1 3 . . 10 7 7 1 7 6 7 6 Combat Bots Only 7 | . 4 4 5 . 1 2 3 7 . 5 4 3 4 6 2 2 1 6 . 3 1 2 . . 4 7 3 1 5 6 4 6 Max Kills in Single Turn 5 | 1 1 3 3 . 1 1 1 3 . 3 4 2 2 2 1 1 1 1 1 1 1 1 . . 5 2 2 1 2 2 2 3 Gunslinging 1 | . . . . . . . . . . . . . . . . . . . . . . . . . . . . . . 1 . . Exploded 4 | . . 3 3 . . . . 3 . 3 4 . 1 2 . . . 1 . . . . . . . . . . . 2 2 3 Melee 1 | . . . . . . . . 1 . . . . . . . . . . . . . . . . . . . . . . . . Uniques/NPCs Destroyed . | . . . . . . . . . . . . . . . . . . . . . . . . . . . . . . . . . Combat | -11 -10 -10 -9 -9 -9 -8 -8 -8 -8 -8 -7 -7 -6 -6 -5 -5 -5 -5 -5 -5 -5 -5 -5 -5 -5 -5 -4 -4 -4 -4 -4 -4 -------- Run | Jun Mat Sub Mat Min Exi Min Mat Gar Mat Gar Fac Gar Fac Gar Fac Was Fac Gar Fac Gar Fac Ext Cet Arc Hub Gar Fac Was Fac Gar Fac Gar Damage Taken 23691 | . 389 1177 1006 . . 7 138 998 30 1126 294 525 1445 1625 39 . 64 2225 . 1035 280 910 65 . 1039 1170 694 . 917 1412 2740 2341 Core 2337 | . 64 160 172 . . . . 115 . 118 . 25 80 55 18 . . 231 . 28 . 13 . . 34 60 29 . 100 116 197 722 Absorbed by Shields 8897 | . . . . . . . . . . . . . 1184 902 . . . 668 . 131 . 250 32 . 384 599 732 . 965 1438 1492 120 Reduced by Siege Mode 183 | . . . . . . . . . . . . . 22 . . . . 52 . . . 37 . . 11 . . . . 61 . . Ignored by Resistances 1132 | . . . . . . . . . 22 32 133 100 463 347 . . . . . 35 . . . . . . . . . . . . Regen/Repaired (Parts) 1317 | . . . 81 . . . . . . . . . . . . 152 12 360 . . . . . . . . . . 712 . . . Core Remaining (%) 66 | 100 . 10 . . . 57 . . . 57 . 96 . 84 . . . . . . . . . . . 61 . . . . . . Volleys Fired 1986 | 10 36 484 94 . 27 2 13 80 . 57 31 28 126 153 5 69 8 132 . 73 12 45 3 . 46 74 30 24 77 74 123 50 Largest 2 | 2 2 2 2 . 1 2 2 2 . 2 2 2 2 2 1 1 1 1 . 1 2 2 2 . 1 2 2 2 2 2 2 2 Hottest 240 | 40 136 148 148 . 30 46 46 46 . 180 180 180 180 180 75 90 75 75 . 90 132 132 240 . 75 132 132 132 132 80 200 240 Shots Fired 2737 | 20 70 551 183 . 28 4 26 150 . 105 54 46 227 166 5 69 8 132 . 73 22 59 6 . 47 130 57 39 156 117 132 55 Gun 603 | 20 . . 136 . 26 4 26 142 . 75 . . . . . 43 . 37 . . . . . . . . . . . 94 . . Cannon 2012 | . 70 536 42 . . . . . . 26 46 38 222 159 5 20 8 86 . 51 20 59 6 . 47 130 56 35 156 18 127 49 Launcher 60 | . . 15 5 . . . . 8 . 4 3 . 3 5 . . . 6 . . . . . . . . . . . 5 3 3 Special 62 | . . . . . 2 . . . . . 5 8 2 2 . 6 . 3 . 22 2 . . . . . 1 4 . . 2 3 Kinetic 1422 | 20 . 14 127 . 26 4 26 144 . 75 . . . 64 5 44 8 123 . 50 20 58 . . 47 130 56 35 153 112 81 . Thermal 1183 | . 70 536 54 . 2 . . . . 26 46 38 222 95 . 19 . . . 6 . 1 6 . . . . . 3 . 18 41 Explosive 41 | . . 1 2 . . . . 6 . 4 3 . 3 5 . . . 6 . . . . . . . . . . . 5 3 3 Electromagnetic 38 | . . . . . . . . . . . . . . . . . . . . . . . . . . . . . . . 29 9 Robot Hit Streak 63 | 6 11 15 10 . 20 1 10 63 . 12 15 11 15 23 8 12 2 21 . 15 16 17 15 . 7 12 12 29 30 19 18 8 Robot Miss Streak 6 | 1 3 3 6 . 1 1 3 2 . 2 4 2 5 5 . 2 2 2 . 3 3 3 1 . 3 4 3 1 4 2 4 5 Penetration Max 2 | . . . . . . . . . . . . . . . . 1 . . . . . 1 . . 1 2 1 . 1 1 1 . Secondary Targets 3 | . . . . . . . . . . 1 . . . . . . . . . . . . . . . . . . . 2 . . Max Gunslinging Chain 1 | . . . . . . . . . . 1 . . . . . . . . . . . . . . . . . . . 1 . . Capacitor 17 | . . . . . . . . . . . . . . . . . . . . . . . . . . . . . . . . 17 Shots Hit Robots 1567 | 13 40 88 108 . 24 2 19 124 . 64 31 30 142 132 5 59 4 104 . 59 11 42 5 . 31 74 35 34 87 79 89 32 Core Hits 748 | 6 23 44 47 . 11 2 7 57 . 30 20 10 62 67 2 16 2 48 1 15 4 17 4 . 26 39 18 4 52 50 45 19 Critical Kills 119 | . . 2 . . . . . . . . 1 1 4 . . 7 . 6 . . 2 6 . . . 27 15 2 30 14 1 1 Critical Parts Destroyed 119 | . . . 1 . . . . . . 1 . . . . . 1 . 5 . . 3 10 . . . 30 22 2 34 10 . . Critical Strikes 307 | . . 2 1 . . . . . . 1 1 1 4 3 1 16 1 20 . 6 5 18 . . 3 58 37 19 67 28 14 1 Meltdown 11 | . . 2 . . . . . . . . 1 1 4 . . 1 . . . . . . . . . . . . . . 1 1 Destroy 253 | . . . 1 . . . . . . 1 . . . . . 15 . 11 . . 5 16 . . . 58 37 19 64 26 . . Blast 43 | . . . . . . . . . . . . . . 3 1 . 1 9 . 6 . 2 . . 3 . . . 3 2 13 . Melee Attacks 12 | . . . 3 . . 2 . 3 . 4 . . . . . . . . . . . . . . . . . . . . . . Impact . | . . . . . . . . . . . . . . . . . . . . . . . . . . . . . . . . . Slashing . | . . . . . . . . . . . . . . . . . . . . . . . . . . . . . . . . . Piercing 12 | . . . 3 . . 2 . 3 . 4 . . . . . . . . . . . . . . . . . . . . . . Sneak Attacks . | . . . . . . . . . . . . . . . . . . . . . . . . . . . . . . . . . Combat Hostiles . | . . . . . . . . . . . . . . . . . . . . . . . . . . . . . . . . . Follow-up Attacks . | . . . . . . . . . . . . . . . . . . . . . . . . . . . . . . . . . Damage Inflicted 55853 | 132 856 2536 2382 6 371 40 348 1993 . 1611 1437 824 5245 7548 378 905 199 5060 7 2519 162 2156 210 . 3272 1835 832 606 2794 2322 5669 1598 Guns 5483 | 132 . . 1327 . 371 33 348 1319 . 761 . . . . . 358 . 278 . . . . . . . . . . . 556 . . Cannons 42362 | . 842 1847 576 . . . . . . 454 947 824 4653 6297 328 547 199 4450 . 2458 162 2151 210 . 2452 1832 832 606 2429 934 5048 1284 Explosions 7351 | . . 689 476 . . . . 661 . 396 467 . 456 1205 . . . 326 . . . . . . 820 . . . 134 812 595 314 Melee . | . . . . . . . . . . . . . . . . . . . . . . . . . . . . . . . . . Ramming 617 | . 14 . 3 6 . 7 . 13 . . 23 . 136 46 50 . . 6 7 21 . 5 . . . 3 . . 231 20 26 . Kinetic 32910 | 132 . 689 1446 . 371 33 348 1570 . 761 . . . 3733 328 358 199 4728 . 2426 162 2151 . . 2452 1832 832 606 2384 1490 3879 . Thermal 15558 | . 842 1847 729 . . . . . . 454 947 824 4653 2564 . 547 . . . 72 . . 210 . . . . . 166 . 507 1196 Explosive 5185 | . . . 204 . . . . 410 . 396 467 . 456 1205 . . . 326 . . . . . . . . . . . 812 595 314 Electromagnetic 1583 | . . . . . . . . . . . . . . . . . . . . . . . . . 820 . . . 13 . 662 88 Impact . | . . . . . . . . . . . . . . . . . . . . . . . . . . . . . . . . . Slashing . | . . . . . . . . . . . . . . . . . . . . . . . . . . . . . . . . . Piercing . | . . . . . . . . . . . . . . . . . . . . . . . . . . . . . . . . . Highest Corruption 41 | . 1 1 5 5 5 5 . . . . . . 6 5 . . . . . . 1 2 . . 14 14 8 20 31 31 40 41 Average Corruption 9 | . 1 1 5 5 5 5 . . . . . . 1 3 . . . . . . 1 1 . . 9 14 6 15 25 31 32 40 Corruption Purged 11 | . . . . . . . . . . . . . 7 . . . . . . . . 4 . . . . . . . . . . Corruption Blocked . | . . . . . . . . . . . . . . . . . . . . . . . . . . . . . . . . . Effects 675 | . 11 57 24 6 33 22 . . . . . . 22 52 . . . . . . 1 3 . . 31 65 9 15 90 85 111 38 Message Errors 160 | . 1 11 8 1 10 10 . . . . . . 10 10 . . . . . . . . . . 10 16 1 4 22 19 21 6 Matter Fused 137 | . 4 12 3 . 12 2 . . . . . . 3 19 . . . . . . . 1 . . 4 14 2 4 18 15 19 5 Heat Flow Errors 80 | . 1 10 2 2 3 1 . . . . . . 3 4 . . . . . . . . . . 6 7 1 2 11 8 13 6 Energy Discharges 80 | . 3 7 2 1 1 5 . . . . . . 2 9 . . . . . . 1 . . . 5 7 1 . 6 11 17 2 Parts Rejected 10 | . . . . . 1 . . . . . . . 1 2 . . . . . . . . . . . 1 1 . . 3 1 . Parts Fused 4 | . . . . . 1 . . . . . . . . . . . . . . . . . . . 2 . . . 1 . . . Data Loss (minor) 74 | . 2 8 4 2 2 2 . . . . . . 3 6 . . . . . . . 2 . . 2 3 1 . 12 8 12 5 Data Loss (major) 44 | . . 4 3 . 1 2 . . . . . . . 2 . . . . . . . . . . . 7 . 1 4 4 9 7 Misfires 26 | . . 3 1 . 1 . . . . . . . . . . . . . . . . . . . 1 1 . . 8 5 6 . Alerts 18 | . . 1 1 . 1 . . . . . . . . . . . . . . . . . . . 1 3 . . 3 3 4 1 Misdirections 6 | . . . . . . . . . . . . . . . . . . . . . . . . . . . . 1 2 . 1 2 Weapon Failures 36 | . . 1 . . . . . . . . . . . . . . . . . . . . . . . 6 2 3 3 9 8 4 Overload Shots 13 | . . . . . . . . . . . . . 8 5 . . . . . . . . . . . . . . . . . . Effects 3 | . . . . . . . . . . . . . 1 2 . . . . . . . . . . . . . . . . . . Energy Bleed 1 | . . . . . . . . . . . . . 1 . . . . . . . . . . . . . . . . . . . Short Circuit 2 | . . . . . . . . . . . . . . 2 . . . . . . . . . . . . . . . . . . Overflow Damage 1843 | . . 8 . . . . . 31 . . 10 . 171 314 98 10 10 328 . 93 . 57 . . 208 37 . . 21 34 395 18 Projectiles 1599 | . . . . . . . . . . . 10 . 103 235 98 10 10 300 . 93 . 57 . . 192 37 . . 21 34 381 18 Explosions 227 | . . 8 . . . . . 31 . . . . 51 79 . . . 28 . . . . . . 16 . . . . . 14 . Melee 17 | . . . . . . . . . . . . . 17 . . . . . . . . . . . . . . . . . . . Knockbacks 148 | . . . . . . . . 1 . . . . 4 15 2 . 2 26 . 9 3 10 . . 15 14 2 . 23 3 19 . Impact 9 | . . . . . . . . 1 . . . . 4 . 1 . . . . 1 . . . . . . . . 1 . 1 . Kinetic 130 | . . . . . . . . . . . . . . 14 1 . 2 24 . 7 3 10 . . 14 13 2 . 21 3 16 . Secondary 9 | . . . . . . . . . . . . . . 1 . . . 2 . 1 . . . . 1 1 . . 1 . 2 . Self-Inflicted Damage 562 | . . 78 . . . . . 35 . 76 . . . 112 . . . . . . . . . . 91 . . . 122 48 . . Shots 14 | . . 4 . . . . . 2 . 2 . . . 2 . . . . . . . . . . 1 . . . 2 1 . . Rammed 56 | . 8 . 1 1 . 2 . 1 . . 2 . 9 7 2 . . 1 . 3 . 1 . . . 1 . . 12 1 4 . Targets Rammed 59 | . 8 . 1 1 . 2 . 2 . . 2 . 9 7 2 . . 1 2 3 . 1 . . . 1 . . 12 1 4 . Kicked . | . . . . . . . . . . . . . . . . . . . . . . . . . . . . . . . . . Crushed 3 | . . . . . . . . 1 . . . . . . . . . . 2 . . . . . . . . . . . . . Highest Temperature 482 | . 345 251 288 229 274 276 2 31 . 301 258 360 351 482 . . . 93 . 193 193 216 195 . 199 375 199 197 262 265 240 243 Average Temperature 75 | . 106 67 94 101 120 138 2 11 . 104 96 101 49 105 . . . 41 . 52 93 67 49 . 78 97 93 98 41 101 92 94 Received Heat Transfer 4818 | . 132 153 510 . . . 36 504 . 612 27 171 362 337 . . . 241 . 215 9 176 . . 196 239 57 . 67 235 95 444 Effects 22 | . . . . . . 1 . . . . . . 3 15 . . . . . . . . . . . 3 . . . . . . Shutdowns 2 | . . . . . . . . . . . . . 1 1 . . . . . . . . . . . . . . . . . . Energy Bleed 7 | . . . . . . 1 . . . . . . 1 5 . . . . . . . . . . . . . . . . . . Interference 9 | . . . . . . . . . . . . . 1 5 . . . . . . . . . . . 3 . . . . . . Matter Decay 2 | . . . . . . . . . . . . . . 2 . . . . . . . . . . . . . . . . . . Short Circuit 1 | . . . . . . . . . . . . . . 1 . . . . . . . . . . . . . . . . . . Damage (minor) 1 | . . . . . . . . . . . . . . 1 . . . . . . . . . . . . . . . . . . Siege Activations 12 | . . . . . . . . . . . . . 1 . . . . 7 . 1 . 1 . . 1 . . . . 1 . . Total Turns 160 | . . . . . . . . . . . . . 23 . . . . 61 . 16 . 13 . . 6 . . . . 41 . . Longest Duration 41 | . . . . . . . . . . . . . 23 . . . . 16 . 16 . 13 . . 6 . . . . 41 . . Robots Corrupted 4 | . . . . . . . . . . . . . . . . . . . . . . . . . 1 . . . . . 3 . Combat Hostiles 4 | . . . . . . . . . . . . . . . . . . . . . . . . . 1 . . . . . 3 . Parts Fried 14 | . . . . . . . . . . . . . . . . . . . . . . . . . 7 . . . . . 7 . Impact Corruptions 2 | . . . . . . . . . . . . . 2 . . . . . . . . . . . . . . . . . . . Robots Melted 15 | . . 2 . . . . . . . . 1 1 6 1 . 1 . . . . . . . . . . . . . . 1 2 Combat Hostiles 12 | . . 2 . . . . . . . . . 1 6 1 . . . . . . . . . . . . . . . . . 2 Parts Melted 50 | . 2 7 1 . . . . . . 1 4 5 23 1 . 2 . . . . . . . . . . . . . . 1 3 Heat Transferred 21687 | . 1517 3219 1295 . . . . . . 700 1400 1250 6368 3111 . 850 . . . 175 . . 185 . . . . . 137 . 444 1036 Parts Sabotaged 2 | . . . . . . . . . . . . . . . . . . 2 . . . . . . . . . . . . . . Parts Stolen . | . . . . . . . . . . . . . . . . . . . . . . . . . . . . . . . . . Parts Stripped . | . . . . . . . . . . . . . . . . . . . . . . . . . . . . . . . . . Power Chain Reactions . | . . . . . . . . . . . . . . . . . . . . . . . . . . . . . . . . . Missiles Intercepted . | . . . . . . . . . . . . . . . . . . . . . . . . . . . . . . . . . Alert | -11 -10 -10 -9 -9 -9 -8 -8 -8 -8 -8 -7 -7 -6 -6 -5 -5 -5 -5 -5 -5 -5 -5 -5 -5 -5 -5 -4 -4 -4 -4 -4 -4 ------- Run | Jun Mat Sub Mat Min Exi Min Mat Gar Mat Gar Fac Gar Fac Gar Fac Was Fac Gar Fac Gar Fac Ext Cet Arc Hub Gar Fac Was Fac Gar Fac Gar Peak Influence 1557 | 20 287 . 647 235 . 179 271 867 416 995 522 576 589 1557 891 250 368 842 461 1254 673 303 309 184 903 1280 719 182 338 867 501 368 Initial 816 | . 13 . 288 235 . . . 178 412 257 522 263 302 412 816 241 . 156 441 322 658 246 145 123 57 599 672 182 127 179 435 238 Average 442 | 9 122 . 504 235 . 47 198 660 410 660 347 421 227 916 830 112 114 534 449 788 597 159 219 113 281 1033 614 182 130 556 313 284 Maximum Alert Level 4 | . 1 . 2 1 . . 1 3 2 3 2 2 2 4 3 1 1 3 2 4 2 1 1 . 3 4 3 . 1 3 2 1 Low Security (%) 27 | 100 89 . . . . 100 25 1 . . . . 40 . . 62 73 13 . . . 61 53 100 74 . . 100 85 4 1 . Level 1 25 | . 10 . 14 100 . . 74 11 15 14 92 40 43 . . 37 26 19 . 8 . 38 46 . . . . . 14 26 79 100 Level 2 22 | . . . 85 . . . . 19 84 36 6 59 16 14 12 . . 31 100 32 100 . . . . 9 76 . . 39 18 . Level 3 18 | . . . . . . . . 66 . 48 . . . 61 87 . . 36 . 39 . . . . 24 37 23 . . 29 . . Level 4 5 | . . . . . . . . . . . . . . 24 . . . . . 18 . . . . . 53 . . . . . . Level 5 . | . . . . . . . . . . . . . . . . . . . . . . . . . . . . . . . . . High Security . | . . . . . . . . . . . . . . . . . . . . . . . . . . . . . . . . . Max Security . | . . . . . . . . . . . . . . . . . . . . . . . . . . . . . . . . . Squads Dispatched 56 | . 3 . 4 . . . 1 . . . 5 . 17 . . . 3 . . . 2 . . . 8 . 2 . 4 . 7 . Investigation 8 | . 1 . 2 . . . . . . . . . 2 . . . 1 . . . . . . . . . . . . . 2 . Extermination 23 | . . . . . . . . . . . 3 . 9 . . . . . . . 2 . . . 1 . 2 . 4 . 2 . Reinforcement 12 | . 2 . 1 . . . 1 . . . 2 . 1 . . . . . . . . . . . 3 . . . . . 2 . Assault 3 | . . . 1 . . . . . . . . . . . . . . . . . . . . . 1 . . . . . 1 . Garrison 10 | . . . . . . . . . . . . . 5 . . . 2 . . . . . . . 3 . . . . . . . Intercept . | . . . . . . . . . . . . . . . . . . . . . . . . . . . . . . . . . Searches Triggered . | . . . . . . . . . . . . . . . . . . . . . . . . . . . . . . . . . Construction Impeded . | . . . . . . . . . . . . . . . . . . . . . . . . . . . . . . . . . Haulers Reinforced 3 | . . . . . . . . . . . 1 . . . . . . . . . . . . . 1 . . . . . 1 . Active Scanning Responses . | . . . . . . . . . . . . . . . . . . . . . . . . . . . . . . . . . Cargo Convoy Interrupts . | . . . . . . . . . . . . . . . . . . . . . . . . . . . . . . . . . Stealth | -11 -10 -10 -9 -9 -9 -8 -8 -8 -8 -8 -7 -7 -6 -6 -5 -5 -5 -5 -5 -5 -5 -5 -5 -5 -5 -5 -4 -4 -4 -4 -4 -4 --------- Run | Jun Mat Sub Mat Min Exi Min Mat Gar Mat Gar Fac Gar Fac Gar Fac Was Fac Gar Fac Gar Fac Ext Cet Arc Hub Gar Fac Was Fac Gar Fac Gar Distress Signals 15 | . 1 . 1 . . . 1 . . . 1 . 1 . . . 1 . . . . 2 2 . 1 1 1 . 2 . . . Communications Jammed 128 | . . . . . . . . . . . 15 . 2 . . . 3 20 . . . 19 . . . . . . 36 . 33 . Distress Signals 128 | . . . . . . . . . . . 15 . 2 . . . 3 20 . . . 19 . . . . . . 36 . 33 . Times Spotted 651 | . 27 24 36 . . 4 19 20 2 23 28 16 59 27 2 5 7 37 3 40 5 24 15 . 34 43 16 5 40 30 37 23 Peak Tracking Total 9 | . 4 2 6 . . 4 8 9 1 8 4 3 4 6 2 1 2 4 2 5 2 5 5 . 5 8 6 2 6 6 3 8 Tactical Retreats 48 | . 3 4 2 . . . 3 1 . 3 . . 4 1 . . . . . 1 . . . . 4 7 3 . 4 1 3 4 Traps | -11 -10 -10 -9 -9 -9 -8 -8 -8 -8 -8 -7 -7 -6 -6 -5 -5 -5 -5 -5 -5 -5 -5 -5 -5 -5 -5 -4 -4 -4 -4 -4 -4 ------- Run | Jun Mat Sub Mat Min Exi Min Mat Gar Mat Gar Fac Gar Fac Gar Fac Was Fac Gar Fac Gar Fac Ext Cet Arc Hub Gar Fac Was Fac Gar Fac Gar Traps Triggered 66 | . 4 1 1 . . . . 3 . 4 . 4 12 8 1 . . 2 . 5 . 2 . . 4 2 2 . 2 3 1 5 Indirectly . | . . . . . . . . . . . . . . . . . . . . . . . . . . . . . . . . . Trap Hack Attempts . | . . . . . . . . . . . . . . . . . . . . . . . . . . . . . . . . . Triggered . | . . . . . . . . . . . . . . . . . . . . . . . . . . . . . . . . . Disarmed . | . . . . . . . . . . . . . . . . . . . . . . . . . . . . . . . . . Reprogrammed . | . . . . . . . . . . . . . . . . . . . . . . . . . . . . . . . . . Reused . | . . . . . . . . . . . . . . . . . . . . . . . . . . . . . . . . . Traps Extracted . | . . . . . . . . . . . . . . . . . . . . . . . . . . . . . . . . . Installed 1 | . . 1 . . . . . . . . . . . . . . . . . . . . . . . . . . . . . . Triggered . | . . . . . . . . . . . . . . . . . . . . . . . . . . . . . . . . . Machines | -11 -10 -10 -9 -9 -9 -8 -8 -8 -8 -8 -7 -7 -6 -6 -5 -5 -5 -5 -5 -5 -5 -5 -5 -5 -5 -5 -4 -4 -4 -4 -4 -4 ---------- Run | Jun Mat Sub Mat Min Exi Min Mat Gar Mat Gar Fac Gar Fac Gar Fac Was Fac Gar Fac Gar Fac Ext Cet Arc Hub Gar Fac Was Fac Gar Fac Gar Machines Disabled 84 | . . 5 2 . . . . 1 . 2 3 2 3 6 1 . 2 5 . 3 1 1 . 2 29 2 . . 7 2 4 1 Max in Single Turn 28 | . . 2 1 . . . . 1 . 1 2 1 1 1 1 . 1 1 . 1 . 1 . . 28 1 . . 3 1 1 1 Garrison Access 2 | . . . . . . . . . . . . . . . 1 . . . . . . . . . . . . . . . 1 . Garrison Relay 7 | . . . . . . . . . . 1 . . . 1 . . . 1 . 1 . . . . . 1 . . . 1 . 1 Network Hub 2 | . . . . . . . . . . . . . . . . . . . . . . . . . 2 . . . . . . . Machines Repaired . | . . . . . . . . . . . . . . . . . . . . . . . . . . . . . . . . . Machines Sabotaged . | . . . . . . . . . . . . . . . . . . . . . . . . . . . . . . . . . Overloaded Fab Kills . | . . . . . . . . . . . . . . . . . . . . . . . . . . . . . . . . . Hacking | -11 -10 -10 -9 -9 -9 -8 -8 -8 -8 -8 -7 -7 -6 -6 -5 -5 -5 -5 -5 -5 -5 -5 -5 -5 -5 -5 -4 -4 -4 -4 -4 -4 --------- Run | Jun Mat Sub Mat Min Exi Min Mat Gar Mat Gar Fac Gar Fac Gar Fac Was Fac Gar Fac Gar Fac Ext Cet Arc Hub Gar Fac Was Fac Gar Fac Gar Machines Accessed 82 | . 5 2 8 . 4 2 3 4 1 3 4 2 6 2 2 . 3 4 1 2 1 7 . . 3 2 1 . 2 2 6 . Terminals 53 | . 4 . 5 . . 2 1 4 . 3 2 2 4 2 . . 1 4 . 2 1 7 . . 2 2 1 . . 2 2 . Fabricators . | . . . . . . . . . . . . . . . . . . . . . . . . . . . . . . . . . Repair Stations 3 | . . . 1 . . . . . . . . . . . . . 1 . . . . . . . . . . . 1 . . . Recycling Units 7 | . 1 . 2 . . . . . . . 1 . 1 . . . . . . . . . . . . . . . . . 2 . Scanalyzers 2 | . . . . . . . 1 . . . . . . . 1 . . . . . . . . . . . . . . . . . Garrison Access 11 | . . . . . . . 1 . 1 . 1 . 1 . 1 . 1 . 1 . . . . . 1 . . . 1 . 2 . Total Hacks 222 | . 15 11 21 . 41 6 4 9 1 6 6 3 14 4 3 . 4 10 1 2 5 15 . . 3 3 6 . 3 7 19 . Successful 109 | . 3 11 12 . 41 2 2 2 1 3 2 2 1 1 2 . 1 3 1 2 1 5 . . 2 1 . . 3 2 3 . Failed 113 | . 12 . 9 . . 4 2 7 . 3 4 1 13 3 1 . 3 7 . . 4 10 . . 1 2 6 . . 5 16 . Catastrophic 29 | . 2 . 2 . . 1 . 2 . 1 2 . 4 1 . . 1 . . . 1 2 . . 1 2 2 . . 1 4 . Database Lockouts . | . . . . . . . . . . . . . . . . . . . . . . . . . . . . . . . . . Manual 40 | . 8 . 5 . 1 1 1 . . 1 . . 4 . . . 2 3 . . . . 1 . 1 . 6 . . . 6 . Terminals 135 | . 13 . 14 . . 6 1 9 . 6 4 3 12 4 . . 2 10 . 2 5 15 . . 2 3 6 . . 7 11 . Fabricators . | . . . . . . . . . . . . . . . . . . . . . . . . . . . . . . . . . Repair Stations 7 | . . . 4 . . . . . . . . . . . . . 1 . . . . . . . . . . . 2 . . . Recycling Units 13 | . 2 . 3 . . . . . . . 1 . 1 . . . . . . . . . . . . . . . . . 6 . Scanalyzers 4 | . . . . . . . 2 . . . . . . . 2 . . . . . . . . . . . . . . . . . Garrison Access 11 | . . . . . . . 1 . 1 . 1 . 1 . 1 . 1 . 1 . . . . . 1 . . . 1 . 2 . Terminal Hacks 86 | . 2 11 7 . 41 2 . 2 . 3 1 2 . 1 . . . 3 . 2 1 5 . . . 1 . . . 2 . . Record 50 | . . 10 . . 40 . . . . . . . . . . . . . . . . . . . . . . . . . . . Robot Analysis 1 | . . . 1 . . . . . . . . . . . . . . . . . . . . . . . . . . . . . Prototype ID Bank 5 | . 1 . 2 . . . . . . . . . . . . . . . . . . 2 . . . . . . . . . . Open Door 5 | . . . . . . . . 1 . . . 1 . . . . . 1 . . . 2 . . . . . . . . . . Branch Access Points 2 | . . . 2 . . . . . . . . . . . . . . . . . . . . . . . . . . . . . Emergency Access Points 5 | . . . . . . . . . . 1 . . . 1 . . . 1 . 1 . . . . . 1 . . . . . . Terminal Index 1 | . . . . . . . . . . . . . . . . . . . . . . 1 . . . . . . . . . . Unreport Threat 1 | . . . . . . . . . . . 1 . . . . . . . . . . . . . . . . . . . . . Locate Traps 1 | . . . . . . . . . . . . . . . . . . . . . 1 . . . . . . . . . . . Dispatch Records 1 | . . . . . . 1 . . . . . . . . . . . . . . . . . . . . . . . . . . Hauler Manifests 1 | . . . 1 . . . . . . . . . . . . . . . . . . . . . . . . . . . . . Zone Layout 3 | . 1 . 1 . . 1 . . . . . . . . . . . . . . . . . . . . . . . . . . Garrison Registry 4 | . . . . . . . . 1 . 1 . 1 . . . . . 1 . . . . . . . . . . . . . . Patrol Navigation 3 | . . . . . . . . . . 1 . . . . . . . . . 1 . . . . . . . . . 1 . . Security Stations 1 | . . . . . . . . . . . . . . . . . . . . . . . . . . . . . . 1 . . Derelict Proto ID Bank 2 | . . 1 . . 1 . . . . . . . . . . . . . . . . . . . . . . . . . . . Fabricator Hacks . | . . . . . . . . . . . . . . . . . . . . . . . . . . . . . . . . . Repair Station Hacks 6 | . . . 4 . . . . . . . . . . . . . . . . . . . . . . . . . 2 . . . Scan Component 3 | . . . 2 . . . . . . . . . . . . . . . . . . . . . . . . . 1 . . . Repair 3 | . . . 2 . . . . . . . . . . . . . . . . . . . . . . . . . 1 . . . Recycling Unit Hacks 3 | . 1 . 1 . . . . . . . . . . . . . . . . . . . . . . . . . . . 1 . Retrieve Components 3 | . 1 . 1 . . . . . . . . . . . . . . . . . . . . . . . . . . . 1 . Scanalyzer 2 | . . . . . . . 1 . . . . . . . 1 . . . . . . . . . . . . . . . . . Insert Component 2 | . . . . . . . 1 . . . . . . . 1 . . . . . . . . . . . . . . . . . Garrison Access Hacks 11 | . . . . . . . 1 . 1 . 1 . 1 . 1 . 1 . 1 . . . . . 1 . . . 1 . 2 . Unlock Access 10 | . . . . . . . 1 . 1 . 1 . 1 . . . 1 . 1 . . . . . 1 . . . 1 . 2 . Seal Access 1 | . . . . . . . . . . . . . . . 1 . . . . . . . . . . . . . . . . . Unauthorized Hacks 1 | . . . . . . . . . . . . . . . . . . . . . . . . . 1 . . . . . . . Terminals 1 | . . . . . . . . . . . . . . . . . . . . . . . . . 1 . . . . . . . Track 1 | . . . . . . . . . . . . . . . . . . . . . . . . . 1 . . . . . . . Fabricators . | . . . . . . . . . . . . . . . . . . . . . . . . . . . . . . . . . Repair Stations . | . . . . . . . . . . . . . . . . . . . . . . . . . . . . . . . . . Recycling Units . | . . . . . . . . . . . . . . . . . . . . . . . . . . . . . . . . . Scanalyzers . | . . . . . . . . . . . . . . . . . . . . . . . . . . . . . . . . . Garrison Access . | . . . . . . . . . . . . . . . . . . . . . . . . . . . . . . . . . Data Cores Recovered 3 | . . . 1 . . . . . 1 . . . . . . . . . . . . 1 . . . . . . . . . . Used . | . . . . . . . . . . . . . . . . . . . . . . . . . . . . . . . . . Hacking Detections 60 | . 5 . 8 . . 2 2 3 . 2 4 2 6 2 1 . 2 3 1 2 1 6 . . 1 1 1 . 1 1 3 . Full Trace Events 8 | . . . 1 . . . . 2 . . . . 2 . . . 1 . . . . . . . . . . . . . 2 . Feedback Events 1 | . . . . . . . . . . . . . . . . . . . . . . . . . . . . . . . 1 . Corruption 1 | . . . . . . . . . . . . . . . . . . . . . . . . . . . . . . . 1 . Feedback Blocked . | . . . . . . . . . . . . . . . . . . . . . . . . . . . . . . . . . Robot Schematics Acquired . | . . . . . . . . . . . . . . . . . . . . . . . . . . . . . . . . . Robots Built . | . . . . . . . . . . . . . . . . . . . . . . . . . . . . . . . . . Authchips . | . . . . . . . . . . . . . . . . . . . . . . . . . . . . . . . . . Time . | . . . . . . . . . . . . . . . . . . . . . . . . . . . . . . . . . Total Robot Build Rating . | . . . . . . . . . . . . . . . . . . . . . . . . . . . . . . . . . Part Schematics Acquired . | . . . . . . . . . . . . . . . . . . . . . . . . . . . . . . . . . Parts Built . | . . . . . . . . . . . . . . . . . . . . . . . . . . . . . . . . . Authchips . | . . . . . . . . . . . . . . . . . . . . . . . . . . . . . . . . . Time . | . . . . . . . . . . . . . . . . . . . . . . . . . . . . . . . . . Total Part Build Rating . | . . . . . . . . . . . . . . . . . . . . . . . . . . . . . . . . . Parts Repaired 3 | . . . 2 . . . . . . . . . . . . . . . . . . . . . . . . . 1 . . . Time 120 | . . . 52 . . . . . . . . . . . . . . . . . . . . . . . . . 68 . . . Parts Recycled . | . . . . . . . . . . . . . . . . . . . . . . . . . . . . . . . . . Recycled Matter . | . . . . . . . . . . . . . . . . . . . . . . . . . . . . . . . . . Retrieved Matter . | . . . . . . . . . . . . . . . . . . . . . . . . . . . . . . . . . Retrieved Components 12 | . 9 . 3 . . . . . . . . . . . . . . . . . . . . . . . . . . . . . Parts Scanalyzed . | . . . . . . . . . . . . . . . . . . . . . . . . . . . . . . . . . Part Schematics Acquired . | . . . . . . . . . . . . . . . . . . . . . . . . . . . . . . . . . Parts Damaged . | . . . . . . . . . . . . . . . . . . . . . . . . . . . . . . . . . Bothacking | -11 -10 -10 -9 -9 -9 -8 -8 -8 -8 -8 -7 -7 -6 -6 -5 -5 -5 -5 -5 -5 -5 -5 -5 -5 -5 -5 -4 -4 -4 -4 -4 -4 ------------ Run | Jun Mat Sub Mat Min Exi Min Mat Gar Mat Gar Fac Gar Fac Gar Fac Was Fac Gar Fac Gar Fac Ext Cet Arc Hub Gar Fac Was Fac Gar Fac Gar Used RIF Installer 10 | . . . . . . . . 2 . 1 . 1 . 1 . . . 2 . 1 . . . . . 1 . . . 1 . . Hotswap 1 | . . . . . . . . . . . . . . . . . . . . . . . . . . 1 . . . . . . Command Fork 2 | . . . . . . . . . . . . . . . . . . 2 . . . . . . . . . . . . . . Threat Obfuscator 2 | . . . . . . . . 1 . . . 1 . . . . . . . . . . . . . . . . . . . . Watcher Feeds 1 | . . . . . . . . . . . . . . . . . . . . . . . . . . . . . . 1 . . Patrol Navigation 1 | . . . . . . . . . . . . . . . . . . . . 1 . . . . . . . . . . . . Structural Interface 1 | . . . . . . . . . . 1 . . . . . . . . . . . . . . . . . . . . . . Autoassimilate 1 | . . . . . . . . . . . . . . 1 . . . . . . . . . . . . . . . . . . Robots Hacked 34 | . . . . . . . . . . . 2 6 1 2 . 6 1 2 . 3 1 3 . . . . 1 4 . . 1 1 Non-combat 2 | . . . . . . . . . . . . . . . . . . . . . . . . . . . 1 . . . 1 . Combat 32 | . . . . . . . . . . . 2 6 1 2 . 6 1 2 . 3 1 3 . . . . . 4 . . . 1 Autoassimilated 5 | . . . . . . . . . . . . . . . . . 1 . . 1 . 3 . . . . . . . . . . Robot Hacks Applied 30 | . . . . . . . . . . . 2 6 1 2 . 6 . 2 . 2 2 . . . . . 1 4 . . 1 1 find_chute 1 | . . . . . . . . . . . . . . . . . . . . . . . . . . . 1 . . . . . purge_threat 1 | . . . . . . . . . . . . . . . . . . . . . . . . . . . . . . . 1 . ignore_targets 10 | . . . . . . . . . . . . . . . . 6 . . . . . . . . . . . 4 . . . . find_garrison 1 | . . . . . . . . . . . . . . . . . . . . . 1 . . . . . . . . . . . scatter_targeting 2 | . . . . . . . . . . . . . . . . . . 1 . 1 . . . . . . . . . . . . disrupt_area 1 | . . . . . . . . . . . . . . . . . . . . 1 . . . . . . . . . . . . amplify_resonance 1 | . . . . . . . . . . . . 1 . . . . . . . . . . . . . . . . . . . . reboot_system 2 | . . . . . . . . . . . . . . 1 . . . 1 . . . . . . . . . . . . . . formatsys_high 11 | . . . . . . . . . . . 2 5 1 1 . . . . . . 1 . . . . . . . . . . 1 Relay Couplers Released 30 | . . . . . . . . . . 4 . . . 5 . . . 4 . 3 . . . . . 3 . . . 3 4 4 Machine Destruction 30 | . . . . . . . . . . 4 . . . 5 . . . 4 . 3 . . . . . 3 . . . 3 4 4 Attached 11 | . . . . . . . . . . . 1 2 1 1 1 . . 1 . 1 . . . . . . . 1 . . . 2 Fabnet Peak Effective % . | . . . . . . . . . . . . . . . . . . . . . . . . . . . . . . . . . Robots Rewired 48 | . . . . . 5 . . 2 . 4 . 2 . 1 . . . 4 . 10 . 20 . . . . . . . . . . Allies Hacked 4 | . . . . . . . . . . . . . . . . . . . . . 1 . 2 . 1 . . . . . . . Hacks Repelled . | . . . . . . . . . . . . . . . . . . . . . . . . . . . . . . . . . Allies | -11 -10 -10 -9 -9 -9 -8 -8 -8 -8 -8 -7 -7 -6 -6 -5 -5 -5 -5 -5 -5 -5 -5 -5 -5 -5 -5 -4 -4 -4 -4 -4 -4 -------- Run | Jun Mat Sub Mat Min Exi Min Mat Gar Mat Gar Fac Gar Fac Gar Fac Was Fac Gar Fac Gar Fac Ext Cet Arc Hub Gar Fac Was Fac Gar Fac Gar Total Allies 102 | . . . . . 5 . . 2 . 4 2 7 1 2 . 19 1 7 . 11 1 32 5 . . . . . . 2 . 1 Largest Group 26 | . . . . . 5 5 3 2 1 4 3 5 5 1 1 19 17 7 4 10 4 26 26 17 10 . . . . 2 . . Highest-Rated Group 1052 | . . . . . 66 66 50 56 31 104 81 120 120 85 85 702 602 265 253 450 194 892 1052 717 492 . . . . 175 . . Highest-Rated Ally 159 | . . . . . 21 21 21 31 31 39 39 32 32 85 85 50 49 95 95 85 85 159 152 96 96 . . . . 95 . . Total Orders 26 | . . . . . . . . 2 . 4 . 8 . 1 2 . . . . 9 . . . . . . . . . . . . STAY 14 | . . . . . . . . 1 . 2 . 4 . 1 1 . . . . 5 . . . . . . . . . . . . FOLLOW 12 | . . . . . . . . 1 . 2 . 4 . . 1 . . . . 4 . . . . . . . . . . . . Ally Attacks 811 | . . . . . . 15 27 2 3 24 32 20 24 13 7 . 117 54 5 123 17 147 67 36 63 . . . . 15 . . Total Damage 22969 | . . . . . . 167 541 58 62 575 465 620 660 574 457 . 1804 1499 100 5391 595 3292 2413 1176 1375 . . . . 1145 . . Kills 161 | . . . . . . 6 5 1 1 5 8 8 5 3 1 . 17 10 . 34 3 15 17 6 9 . . . . 7 . . Allies Corrupted 8 | . . . . . . . . . . . . . 1 . . . . . . 1 . . 2 . 4 . . . . . . . Allies Melted 3 | . . . . . . . . 1 . . . . . . . 1 . . . . . . . . . . . . . 1 . . Intel | -11 -10 -10 -9 -9 -9 -8 -8 -8 -8 -8 -7 -7 -6 -6 -5 -5 -5 -5 -5 -5 -5 -5 -5 -5 -5 -5 -4 -4 -4 -4 -4 -4 ------- Run | Jun Mat Sub Mat Min Exi Min Mat Gar Mat Gar Fac Gar Fac Gar Fac Was Fac Gar Fac Gar Fac Ext Cet Arc Hub Gar Fac Was Fac Gar Fac Gar Robot Analysis Total 1 | . . . 1 . . . . . . . . . . . . . . . . . . . . . . . . . . . . . Derelict Logs Recovered 3 | . . 2 . 1 . . . . . . . . . . . . . . . . . . . . . . . . . . . . Drone Launches . | . . . . . . . . . . . . . . . . . . . . . . . . . . . . . . . . . Drone Recoveries . | . . . . . . . . . . . . . . . . . . . . . . . . . . . . . . . . . Exploration | -11 -10 -10 -9 -9 -9 -8 -8 -8 -8 -8 -7 -7 -6 -6 -5 -5 -5 -5 -5 -5 -5 -5 -5 -5 -5 -5 -4 -4 -4 -4 -4 -4 ------------- Run | Jun Mat Sub Mat Min Exi Min Mat Gar Mat Gar Fac Gar Fac Gar Fac Was Fac Gar Fac Gar Fac Ext Cet Arc Hub Gar Fac Was Fac Gar Fac Gar Turns Passed 49111 | 223 1949 8139 2071 208 1251 996 372 1219 166 2064 1516 1369 4766 3375 458 1053 523 2050 123 2211 519 1906 299 486 1359 1561 875 213 1730 1443 2008 610 Spaces Moved 20028 | 113 791 2798 868 122 677 484 198 457 51 553 581 487 1549 1166 264 539 299 1003 71 1160 285 885 154 48 741 785 467 85 726 704 682 235 Core 21 | 3 1 . . . . . . . . . . . . . . . . . . . . . . . . . . . . . . 17 Treads 19717 | 107 790 2798 868 122 677 484 198 457 51 553 581 487 1549 1166 264 539 299 1003 71 1160 285 885 154 48 741 785 467 85 726 704 613 . Legs 55 | . . . . . . . . . . . . . . . . . . . . . . . . . . . . . . . . 55 Wheels 235 | 3 . . . . . . . . . . . . . . . . . . . . . . . . . . . . . . 69 163 Hover . | . . . . . . . . . . . . . . . . . . . . . . . . . . . . . . . . . Flight . | . . . . . . . . . . . . . . . . . . . . . . . . . . . . . . . . . Fastest Speed 50 | 50 160 240 160 160 160 160 150 150 240 320 240 240 244 160 160 155 156 156 160 160 160 160 160 163 163 163 163 163 163 163 140 50 Average Speed 198 | 154 209 249 180 160 160 160 155 194 312 320 240 244 244 239 160 159 156 159 160 160 160 162 162 163 163 163 163 163 164 163 190 178 Slowest Speed 400 | 160 350 250 250 160 160 160 240 240 320 320 240 400 244 244 160 240 156 160 160 160 163 163 163 163 163 163 163 163 240 163 320 290 Overloaded Moves . | . . . . . . . . . . . . . . . . . . . . . . . . . . . . . . . . . Propulsion Burnouts . | . . . . . . . . . . . . . . . . . . . . . . . . . . . . . . . . . Robots Hopped . | . . . . . . . . . . . . . . . . . . . . . . . . . . . . . . . . . Cave-ins Triggered . | . . . . . . . . . . . . . . . . . . . . . . . . . . . . . . . . . Exploration Rate (%) 53 | 9 82 97 65 34 93 100 29 52 6 69 19 54 43 95 6 94 13 98 3 94 9 86 60 63 60 86 16 84 20 78 30 26 Regions Visited 32 Branch Regions 8 Pre-discovered Areas 2 | . . . . 1 1 . . . . . . . . . . . . . . . . . . . . . . . . . . . Known Exits Taken 11 | . . . 1 . . 1 1 . 1 . 1 . 1 . . . 1 . 1 . . . . . 1 . . . 1 . 1 . Unknown Exits Taken 9 | 1 1 1 . 1 1 . . . . . . . . . . . . . . . 1 1 1 1 . . . . . . . . Scrap Searched 11 | . . 9 . 1 . 1 . . . . . . . . . . . . . . . . . . . . . . . . . . Spaces Dug 210 | . 1 120 17 . . 1 . 9 . 15 . . 7 1 . . . 10 . 1 . . . . . . . . 4 . 15 9 Terrain Destroyed 1069 | . 1 260 45 . . 1 . 39 . 17 26 . 57 42 1 2 2 44 . 16 3 4 1 . 336 1 . . 44 43 60 24 Melee 4 | . . . 1 . . 1 . 1 . 1 . . . . . . . . . . . . . . . . . . . . . . Projectile 319 | . 1 123 7 . . . . . . . 13 . 39 11 1 2 2 13 . 16 3 4 1 . 19 1 . . 14 4 35 10 AOE 742 | . . 137 37 . . . . 38 . 16 13 . 18 31 . . . 28 . . . . . . 317 . . . 30 38 25 14 Terrain Rammed . | . . . . . . . . . . . . . . . . . . . . . . . . . . . . . . . . . Walls Destroyed . | . . . . . . . . . . . . . . . . . . . . . . . . . . . . . . . . . Machines Disabled . | . . . . . . . . . . . . . . . . . . . . . . . . . . . . . . . . . Actions | -11 -10 -10 -9 -9 -9 -8 -8 -8 -8 -8 -7 -7 -6 -6 -5 -5 -5 -5 -5 -5 -5 -5 -5 -5 -5 -5 -4 -4 -4 -4 -4 -4 --------- Run | Jun Mat Sub Mat Min Exi Min Mat Gar Mat Gar Fac Gar Fac Gar Fac Was Fac Gar Fac Gar Fac Ext Cet Arc Hub Gar Fac Was Fac Gar Fac Gar Total 26533 | 140 1015 3408 1201 134 820 698 238 637 62 741 647 626 2295 1546 291 670 346 1283 80 1433 326 1272 202 456 822 932 524 120 1097 871 1219 381 Wait 2701 | . 126 80 146 12 . 207 7 20 . 22 2 28 529 68 9 31 23 87 2 93 25 98 9 409 30 34 2 . 250 26 302 24 Move 20002 | 112 790 2797 867 121 676 483 198 456 50 552 580 486 1549 1165 264 538 299 1001 70 1159 284 884 153 47 741 784 467 84 725 703 682 235 Hop . | . . . . . . . . . . . . . . . . . . . . . . . . . . . . . . . . . Pick Up 276 | 9 20 14 25 . 8 . 5 14 7 16 7 12 17 28 4 3 5 6 1 5 1 3 8 . 2 11 5 2 3 12 21 2 Fast Attach 178 | 7 9 1 7 . 1 . 1 1 . 1 1 5 13 16 1 12 2 11 2 13 . 5 5 . 1 6 6 2 9 14 19 7 Attach 124 | . . 4 6 . 2 . 3 7 . 3 2 5 6 15 2 1 1 5 . 5 1 . 2 . 2 8 2 . 1 8 22 11 Detach 38 | . . . . . . . . 1 . . . 1 . 3 . . . 3 . 5 . 2 2 . . . . . . 3 13 5 Swap 216 | 1 8 17 18 . 7 2 5 13 2 20 14 18 12 17 3 1 1 2 . 2 2 14 4 . . . 3 4 9 6 7 4 Drop 378 | 1 18 10 34 . 10 . 6 16 3 16 8 21 21 43 1 15 7 13 3 18 1 8 15 . . 14 9 4 10 24 26 3 Fire 1986 | 10 36 484 94 . 27 2 13 80 . 57 31 28 126 153 5 69 8 132 . 73 12 45 3 . 46 74 30 24 77 74 123 50 Melee 12 | . . . 3 . . 2 . 3 . 4 . . . . . . . . . . . . . . . . . . . . . . Ram 1 | . . . . . . . . . . . . . . . . . . . . . . . . . . . . . 1 . . . Kick . | . . . . . . . . . . . . . . . . . . . . . . . . . . . . . . . . . Crush 59 | . 8 . 1 1 . 2 . 2 . . 2 . 9 7 2 . . 1 2 3 . 1 . . . 1 . . 12 1 4 . Escape Stasis 83 | . . . . . . . . 4 . 8 . 4 13 14 . . . . . . . . . . . . . . . . . 40 Rewire 478 | . . . . . 89 . . 20 . 42 . 18 . 17 . . . 22 . 57 . 212 1 . . . . . . . . . Trap 1 | . . 1 . . . . . . . . . . . . . . . . . . . . . . . . . . . . . . Miscellaneous . | . . . . . . . . . . . . . . . . . . . . . . . . . . . . . . . . . Route ------- -11/Junkyard -10/Materials (discovered 3 exits: *Mat / [*Min] / *Sub) -10/Subcaves (discovered 3 exits: *Mat / *Mat / [*Rec]) -9/Materials (discovered 5 exits: *Mat x3 / *Min x2) -9/Mines -9/Exiles -8/Mines (discovered 2 exits: *Mat x2) -8/Materials (discovered 2 exits: *Fac / Gar) -8/Garrison (discovered 3 exits: *Mat x3) -8/Materials -8/Garrison (discovered 3 exits: *Fac x3) -7/Factory (discovered 3 exits: *Fac / [*Low] / Gar) -7/Garrison (discovered 3 exits: *Fac x3) -6/Factory (discovered 5 exits: *Fac x3 / [*Low] / Gar) -6/Garrison (discovered 3 exits: *Fac x3) -5/Factory -5/Waste -5/Factory -5/Garrison (discovered 3 exits: *Fac x3) -5/Factory -5/Garrison (discovered 4 exits: *Fac x3 / *Fac) -5/Factory -5/Extension (discovered 2 exits: *Fac / *Cet) -5/Cetus (discovered 2 exits: *Fac / [*Arc]) -5/Archives -5/Hub_04(d) (discovered 4 exits: *Fac x3 / Gar) -5/Garrison (discovered 3 exits: *Fac x3) -4/Factory (discovered 2 exits: [*Res] / [*Upp]) -4/Waste -4/Factory (discovered 2 exits: [*Upp] / Gar) -4/Garrison (discovered 3 exits: *Fac x3) -4/Factory (discovered 2 exits: [*Upp] / Gar) -4/Garrison History --------- Turn | Location | Event 8 | -11/Junkyard | Discovered new exit (range 14) 224 | -11/Junkyard | Entered Materials 311 | -10/Materials | Build established: Mutant 472 | -10/Materials | Discovered new exit (range 16) 889 | -10/Materials | Discovered new exit (range 12) 1778 | -10/Materials | Discovered new exit (range 7) 2173 | -10/Materials | Entered Subcaves 2883 | -10/Subcaves | Disturbed a concealed Subdweller 3043 | -10/Subcaves | Learned Materials garrison access intel 3150 | -10/Subcaves | Visited 4L-MR0's lab 3185 | -10/Subcaves | Found Meta Core 3523 | -10/Subcaves | Shifting Twisted Machinery released Sub. Power Source 3877 | -10/Subcaves | Visited Clippyterm 4180 | -10/Subcaves | Discovered new exit (range 14) 4249 | -10/Subcaves | Core integrity fell below 50% 4311 | -10/Subcaves | Learned location of 1 exit from Materials 4738 | -10/Subcaves | Ambushed by Subdweller buried in earth 4740 | -10/Subcaves | Ambushed by Subdweller buried in earth 4871 | -10/Subcaves | Discovered new exit (range 2) 5911 | -10/Subcaves | Ambushed by Subdweller buried in earth 8543 | -10/Subcaves | Ambushed by Subdweller buried in earth 8878 | -10/Subcaves | Ambushed by Subdweller buried in earth 9105 | -10/Subcaves | Discovered new exit (range 15) 9106 | -10/Subcaves | Core integrity fell below 20% 9141 | -10/Subcaves | Ambushed by Subdweller buried in earth 9497 | -10/Subcaves | Ambushed by Subdweller buried in earth 9510 | -10/Subcaves | Ambushed by Subdweller buried in earth 10312 | -10/Subcaves | Entered Materials 10312 | -9/Materials | Evolved 2 slots: Propulsion x1, Utility x1 10313 | -9/Materials | Identified exit to Materials 10337 | -9/Materials | Identified exit to Mines 11050 | -9/Materials | Discovered exit to Materials (range 15) 11138 | -9/Materials | Build established: Scavenger-Mutant 11317 | -9/Materials | Discovered exit to Materials (range 13) 11496 | -9/Materials | Repaired Lgt. Treads 11523 | -9/Materials | Repaired Lgt. Armor Plating 12312 | -9/Materials | First assault squad dispatched 12383 | -9/Materials | Entered Mines 12517 | -9/Mines | Learned location of Storage (-8) 12537 | -9/Mines | Received a Rocket Launcher from a helpful Derelict 12583 | -9/Mines | Deemed a non-threat by the Exiles lab entrance 12584 | -9/Mines | Discovered new exit (range 5) 12591 | -9/Mines | Entered Exiles 12591 | -9/Exiles | Found Exiles lab destroyed 12762 | -9/Exiles | Opened EX-Vault 12772 | -9/Exiles | Found Skeleton Box 12906 | -9/Exiles | Build established: Mutant 13207 | -9/Exiles | Build established: Scavenger-Mutant 13589 | -9/Exiles | Build established: Mutant 13704 | -9/Exiles | Learned location of Zion (-6) 13828 | -9/Exiles | Discovered new exit (range 10) 13842 | -9/Exiles | Entered Mines 13842 | -8/Mines | Accompanied by 5 allies 13970 | -8/Mines | Build established: Commander-Mutant 14306 | -8/Mines | Build established: Mutant 14532 | -8/Mines | Discovered exit to Materials (range 13) 14631 | -8/Mines | Discovered exit to Materials (range 10) 14838 | -8/Mines | Entered Materials 14838 | -8/Materials | Accompanied by 3 allies 14838 | -8/Materials | Evolved 2 slots: Utility x2 14839 | -8/Materials | Loaded intel: 1 garrison access location 15064 | -8/Materials | Discovered new exit (range 16) 15210 | -8/Materials | Identified exit to Garrison 15210 | -8/Materials | Entered Garrison 15231 | -8/Garrison | Discovered new exit (range 65) 15231 | -8/Garrison | Discovered new exit (range 81) 15231 | -8/Garrison | Discovered new exit (range 103) 15363 | -8/Garrison | Triggered checkpoint 15399 | -8/Garrison | Destroyed 7 combat bots 15400 | -8/Garrison | Triggered checkpoint 15570 | -8/Garrison | Installed Relay Interface Framework 15756 | -8/Garrison | Found Hvy. Reactive Plating 15763 | -8/Garrison | Found Hvy. Reactive Plating 15772 | -8/Garrison | Found Hvy. Reactive Plating 15912 | -8/Garrison | Triggered checkpoint 16344 | -8/Garrison | Build established: Scavenger-Mutant 16379 | -8/Garrison | Expanded RIF knowledge: Threat Obfuscation 16396 | -8/Garrison | Triggered checkpoint 16429 | -8/Garrison | Entered Materials 16429 | -8/Materials | Accompanied by 1 ally 16528 | -8/Materials | Identified exit to Garrison 16595 | -8/Materials | Entered Garrison 16637 | -8/Garrison | Discovered new exit (range 80) 16637 | -8/Garrison | Discovered new exit (range 91) 16637 | -8/Garrison | Discovered new exit (range 69) 16737 | -8/Garrison | Build established: Mutant 16873 | -8/Garrison | Triggered checkpoint 16895 | -8/Garrison | Triggered checkpoint 16928 | -8/Garrison | Triggered checkpoint 16995 | -8/Garrison | Lost 3 parts (1p2w) 17241 | -8/Garrison | Remotely autohacked Sealed Heavy Doors 17262 | -8/Garrison | Build established: Scavenger-Mutant 17454 | -8/Garrison | Triggered checkpoint 17650 | -8/Garrison | Triggered checkpoint 17915 | -8/Garrison | Expanded RIF knowledge: Structural Interface 18230 | -8/Garrison | Triggered checkpoint 18438 | -8/Garrison | Garrison Relay disabled 18652 | -8/Garrison | Build established: Mutant 18659 | -8/Garrison | Entered Factory 18659 | -7/Factory | Accompanied by 3 allies 18659 | -7/Factory | Evolved 2 slots: Propulsion x1, Utility x1 19132 | -7/Factory | Discovered new exit (range 8) 19409 | -7/Factory | Discovered new exit (range 7) 20142 | -7/Factory | Identified exit to Garrison 20175 | -7/Factory | Entered Garrison 20175 | -7/Garrison | Accompanied by 1 ally 20289 | -7/Garrison | Build established: Bothacker-Mutant 20355 | -7/Garrison | Triggered checkpoint 20444 | -7/Garrison | Discovered new exit (range 23) 20444 | -7/Garrison | Discovered new exit (range 62) 20444 | -7/Garrison | Discovered new exit (range 62) 20521 | -7/Garrison | Spotted B-75 Beast 20723 | -7/Garrison | Destroyed B-75 Beast 20912 | -7/Garrison | Triggered checkpoint 21039 | -7/Garrison | Expanded RIF knowledge: Threat Obfuscation 21141 | -7/Garrison | Triggered checkpoint 21232 | -7/Garrison | Triggered checkpoint 21544 | -7/Garrison | Entered Factory 21544 | -6/Factory | Accompanied by 5 allies 21544 | -6/Factory | Evolved 2 slots: Power x1, Utility x1 21660 | -6/Factory | Discovered new exit (range 15) 21802 | -6/Factory | P-60 Hacker assimilated allied 8I-GGB(b) 22225 | -6/Factory | Discovered new exit (range 15) 22994 | -6/Factory | Garrison activated, responded to threat 24147 | -6/Factory | Build established: Mutant 24200 | -6/Factory | Discovered new exit (range 14) 24881 | -6/Factory | Discovered new exit (range 10) 26205 | -6/Factory | Garrison activated, responded to threat 26310 | -6/Factory | Identified exit to Garrison 26310 | -6/Factory | Entered Garrison 26354 | -6/Garrison | Expanded RIF knowledge: Autoassimilate 26378 | -6/Garrison | Triggered checkpoint 26450 | -6/Garrison | Garrison Relay disabled 26568 | -6/Garrison | Triggered checkpoint 26579 | -6/Garrison | Triggered checkpoint 26652 | -6/Garrison | Spotted B-75 Beast 26728 | -6/Garrison | Spotted B-75 Beast 26750 | -6/Garrison | Build established: Bothacker-Mutant 26815 | -6/Garrison | Discovered new exit (range 9) 27048 | -6/Garrison | Triggered checkpoint 27331 | -6/Garrison | Destroyed B-75 Beast 27485 | -6/Garrison | Destroyed B-75 Beast 27870 | -6/Garrison | Triggered checkpoint 28303 | -6/Garrison | Discovered new exit (range 10) 29050 | -6/Garrison | Triggered checkpoint 29078 | -6/Garrison | Discovered new exit (range 12) 29407 | -6/Garrison | Found Unknown Hackware 29412 | -6/Garrison | Found Unknown Hackware 29418 | -6/Garrison | Found Unknown Hackware 29423 | -6/Garrison | Found Unknown Hackware 29581 | -6/Garrison | Rewired B-75 Beast 29685 | -6/Garrison | Entered Factory 29685 | -5/Factory | Accompanied by 1 ally 29685 | -5/Factory | Evolved 2 slots: Propulsion x2 29706 | -5/Factory | Build established: Botlord-Mutant 29710 | -5/Factory | Identified Relay Coupler [Proto] (x4) 29980 | -5/Factory | Attached Meta Core, gained temporary slots: Propulsion, Utility, Weapon 30143 | -5/Factory | Sucked down chute 30143 | -5/Factory | Entered Waste 30156 | -5/Waste | Spotted C-40 Crusher 30174 | -5/Waste | Spotted C-40 Crusher 30246 | -5/Waste | Spotted C-40 Crusher 30342 | -5/Waste | Spotted C-40 Crusher 30348 | -5/Waste | Spotted C-40 Crusher 30353 | -5/Waste | Destroyed C-40 Crusher 30375 | -5/Waste | Spotted C-40 Crusher 30403 | -5/Waste | Destroyed C-40 Crusher 30435 | -5/Waste | Destroyed C-40 Crusher 30452 | -5/Waste | Destroyed C-40 Crusher 30483 | -5/Waste | Destroyed C-40 Crusher 30524 | -5/Waste | Destroyed C-40 Crusher 30716 | -5/Waste | Warlord forces began an assault 30900 | -5/Waste | Discovered new exit (range 11) 31196 | -5/Waste | Entered Factory 31196 | -5/Factory | Accompanied by 17 allies 31719 | -5/Factory | Identified exit to Garrison 31719 | -5/Factory | Entered Garrison 31719 | -5/Garrison | Accompanied by 7 allies 31748 | -5/Garrison | Triggered checkpoint 31788 | -5/Garrison | Triggered checkpoint 31827 | -5/Garrison | Expanded RIF knowledge: Command Fork 32010 | -5/Garrison | Spotted B-75 Beast 32041 | -5/Garrison | Destroyed B-75 Beast 32288 | -5/Garrison | Triggered checkpoint 32347 | -5/Garrison | Discovered new exit (range 9) 32430 | -5/Garrison | Found Relay Coupler [Proto] 32494 | -5/Garrison | Triggered checkpoint 32601 | -5/Garrison | Triggered checkpoint 32614 | -5/Garrison | Triggered checkpoint 32731 | -5/Garrison | Discovered new exit (range 10) 32799 | -5/Garrison | Expanded RIF knowledge: Command Fork 32843 | -5/Garrison | Spotted Executioner 32843 | -5/Garrison | Spotted Executioner 32879 | -5/Garrison | Destroyed Executioner 32904 | -5/Garrison | Destroyed Executioner 33022 | -5/Garrison | Garrison Relay disabled 33241 | -5/Garrison | Found embedded Infiltrators 33259 | -5/Garrison | Discovered new exit (range 5) 33280 | -5/Garrison | Discovered new exit (range 54) 33280 | -5/Garrison | Discovered new exit (range 12) 33280 | -5/Garrison | Discovered new exit (range 68) 33304 | -5/Garrison | Triggered checkpoint 33393 | -5/Garrison | Rescued a captive Derelict 33769 | -5/Garrison | Entered Factory 33769 | -5/Factory | Accompanied by 4 allies 33881 | -5/Factory | Identified exit to Garrison 33892 | -5/Factory | Entered Garrison 33892 | -5/Garrison | Accompanied by 3 allies 33976 | -5/Garrison | Triggered checkpoint 34044 | -5/Garrison | Spotted B-75 Beast 34055 | -5/Garrison | Allies destroyed B-75 Beast 34095 | -5/Garrison | Found Relay Coupler [Proto] 34098 | -5/Garrison | Found Relay Coupler [Proto] 34182 | -5/Garrison | Spotted B-75 Beast 34188 | -5/Garrison | Triggered checkpoint 34217 | -5/Garrison | Allies destroyed B-75 Beast 34320 | -5/Garrison | Triggered checkpoint 34434 | -5/Garrison | Discovered new exit (range 9) 34608 | -5/Garrison | Triggered checkpoint 34643 | -5/Garrison | Discovered new exit (range 3) 34778 | -5/Garrison | Triggered checkpoint 34800 | -5/Garrison | Triggered checkpoint 34859 | -5/Garrison | Discovered new exit (range 11) 34865 | -5/Garrison | Spotted B-90 Cyclops 34868 | -5/Garrison | Rewired B-75 Beast 34875 | -5/Garrison | Allies destroyed B-90 Cyclops 34988 | -5/Garrison | Triggered checkpoint 35020 | -5/Garrison | Garrison Relay disabled 35283 | -5/Garrison | Expanded RIF knowledge: Patrol Navigation 35352 | -5/Garrison | Discovered new exit (range 14) 35654 | -5/Garrison | Triggered checkpoint 35678 | -5/Garrison | Triggered checkpoint 35704 | -5/Garrison | Triggered checkpoint 35944 | -5/Garrison | Triggered checkpoint 36103 | -5/Garrison | Entered Factory 36103 | -5/Factory | Accompanied by 4 allies 36583 | -5/Factory | Discovered new exit (range 15) 36622 | -5/Factory | Entered Extension 36622 | -5/Extension | Accompanied by 1 ally 37035 | -5/Extension | Remotely autohacked Sealed Heavy Doors 37036 | -5/Extension | Rescued a captive Derelict 37037 | -5/Extension | Rescued a captive Derelict 37227 | -5/Extension | Rescued a captive Derelict 37228 | -5/Extension | Rescued a captive Derelict 37240 | -5/Extension | Rescued a captive Derelict 37241 | -5/Extension | Rescued a captive Derelict 37280 | -5/Extension | Remotely autohacked Sealed Heavy Doors 37281 | -5/Extension | Rescued A7 37701 | -5/Extension | Spotted B-75 Beast 37714 | -5/Extension | Allies destroyed B-75 Beast 37733 | -5/Extension | Spotted B-75 Beast 37738 | -5/Extension | Destroyed B-75 Beast 38356 | -5/Extension | Remotely autohacked Sealed Heavy Doors 38384 | -5/Extension | Rescued a captive Derelict 38394 | -5/Extension | Rescued a captive Derelict 38457 | -5/Extension | Discovered new exit (range 10) 38459 | -5/Extension | Discovered new exit (range 6) 38490 | -5/Extension | Build established: Commander-Mutant 38528 | -5/Extension | Entered Cetus 38528 | -5/Cetus | Accompanied by 26 allies (A7) 38533 | -5/Cetus | Acquired a Cetus Manufacturing Module code from A7 38548 | -5/Cetus | Spotted Cetus Guard 38548 | -5/Cetus | Spotted Cetus Guard 38552 | -5/Cetus | Spotted Cetus Guard 38552 | -5/Cetus | Spotted Cetus Guard 38560 | -5/Cetus | Allies destroyed Cetus Guard 38562 | -5/Cetus | Allies destroyed Cetus Guard 38562 | -5/Cetus | Allies destroyed Cetus Guard 38562 | -5/Cetus | Allies destroyed Cetus Guard 38564 | -5/Cetus | Extracted ID and sensor layout for unrecognized location from A7's data core 38630 | -5/Cetus | Started Cetus Manufacturing Module 38649 | -5/Cetus | Discovered new exit (range 15) 38655 | -5/Cetus | Manufactured an Enhanced Grunt 38679 | -5/Cetus | Spotted Cetus Guard 38680 | -5/Cetus | Manufactured an Enhanced Grunt 38680 | -5/Cetus | Spotted Cetus Guard 38684 | -5/Cetus | Spotted Cetus Guard 38685 | -5/Cetus | Spotted Cetus Guard 38686 | -5/Cetus | Allies destroyed Cetus Guard 38686 | -5/Cetus | Allies destroyed Cetus Guard 38694 | -5/Cetus | Allies destroyed Cetus Guard 38696 | -5/Cetus | Allies destroyed Cetus Guard 38699 | -5/Cetus | Discovered new exit (range 15) 38705 | -5/Cetus | Manufactured an Enhanced Grunt 38709 | -5/Cetus | Met Revision 17 38730 | -5/Cetus | Manufactured an Enhanced Grunt 38755 | -5/Cetus | Manufactured an Enhanced Grunt 38827 | -5/Cetus | Entered Archives 38827 | -5/Archives | Accompanied by 17 allies 39010 | -5/Archives | Build established: Botlord-Mutant 39255 | -5/Archives | Met Zhirov 39261 | -5/Archives | Reinforcements dispatched to Archives 39265 | -5/Archives | Discovered new exit (range 15) 39306 | -5/Archives | Reinforcements dispatched to Archives 39313 | -5/Archives | Entered Hub_04(d) 39313 | -5/Hub_04(d) | Accompanied by 10 allies 39607 | -5/Hub_04(d) | Garrison activated, responded to threat 39741 | -5/Hub_04(d) | Discovered new exit (range 5) 40073 | -5/Hub_04(d) | Discovered new exit (range 16) 40112 | -5/Hub_04(d) | System corruption reached 10% 40260 | -5/Hub_04(d) | Discovered new exit (range 12) 40339 | -5/Hub_04(d) | Network Hub disabled 40339 | -5/Hub_04(d) | Network Hub disabled 40371 | -5/Hub_04(d) | Spotted B-75 Beast 40387 | -5/Hub_04(d) | Spotted Lightning 40513 | -5/Hub_04(d) | First assault squad dispatched 40672 | -5/Hub_04(d) | Identified exit to Garrison 40672 | -5/Hub_04(d) | Entered Garrison 40877 | -5/Garrison | Destroyed 7 combat bots 40914 | -5/Garrison | Triggered checkpoint 40959 | -5/Garrison | Garrison Relay disabled 41001 | -5/Garrison | Triggered checkpoint 41326 | -5/Garrison | Triggered checkpoint 41326 | -5/Garrison | Triggered checkpoint 41488 | -5/Garrison | Triggered checkpoint 41613 | -5/Garrison | Discovered new exit (range 12) 41832 | -5/Garrison | Triggered checkpoint 41859 | -5/Garrison | Expanded RIF knowledge: Hotswap 41920 | -5/Garrison | Triggered checkpoint 41972 | -5/Garrison | Discovered new exit (range 10) 42194 | -5/Garrison | Triggered checkpoint 42210 | -5/Garrison | Discovered new exit (range 15) 42233 | -5/Garrison | Entered Factory 42233 | -4/Factory | Evolved 2 slots: Power x1, Utility x1 42451 | -4/Factory | Discovered new exit (range 4) 42628 | -4/Factory | Discovered new exit (range 10) 43108 | -4/Factory | Sucked down chute 43108 | -4/Factory | Entered Waste 43123 | -4/Waste | EMP discharged 43123 | -4/Waste | System corruption reached 10% 43141 | -4/Waste | Spotted C-40 Crusher 43159 | -4/Waste | Spotted C-40 Crusher 43166 | -4/Waste | Spotted C-40 Crusher 43170 | -4/Waste | Destroyed C-40 Crusher 43199 | -4/Waste | Spotted C-40 Crusher 43201 | -4/Waste | Destroyed C-40 Crusher 43223 | -4/Waste | EMP discharged 43254 | -4/Waste | Spotted C-40 Crusher 43257 | -4/Waste | Spotted C-40 Crusher 43307 | -4/Waste | Discovered new exit (range 10) 43321 | -4/Waste | Entered Factory 43651 | -4/Factory | Repaired Arm. Heavy Treads 44459 | -4/Factory | Discovered new exit (range 5) 44669 | -4/Factory | System corruption reached 30% 45045 | -4/Factory | Identified exit to Garrison 45051 | -4/Factory | Entered Garrison 45112 | -4/Garrison | Learned Factory security intel 45254 | -4/Garrison | Triggered checkpoint 45358 | -4/Garrison | Spotted B-86 Titan 45358 | -4/Garrison | Triggered checkpoint 45391 | -4/Garrison | Destroyed B-86 Titan 45463 | -4/Garrison | Triggered checkpoint 45550 | -4/Garrison | Triggered checkpoint 45722 | -4/Garrison | Discovered new exit (range 8) 45793 | -4/Garrison | Triggered checkpoint 45970 | -4/Garrison | Discovered new exit (range 12) 46010 | -4/Garrison | Triggered checkpoint 46055 | -4/Garrison | Found embedded Infiltrators 46179 | -4/Garrison | Found Unknown Device 46179 | -4/Garrison | Identified Antimissile System 46216 | -4/Garrison | Triggered checkpoint 46266 | -4/Garrison | Discovered new exit (range 6) 46322 | -4/Garrison | Expanded RIF knowledge: Watcher Feeds 46347 | -4/Garrison | Spotted B-86 Titan 46494 | -4/Garrison | Entered Factory 46693 | -4/Factory | Identified exit to Garrison 46708 | -4/Factory | Found Quantum Capacitor 47475 | -4/Factory | Discovered new exit (range 16) 47626 | -4/Factory | Lost 3 parts (1p2n) 48305 | -4/Factory | Lost 4 parts (1p2u1w) 48502 | -4/Factory | Identified exit to Garrison 48502 | -4/Factory | Entered Garrison 48593 | -4/Garrison | Triggered checkpoint 48648 | -4/Garrison | Garrison Relay disabled 48750 | -4/Garrison | Spotted B-86 Titan 48761 | -4/Garrison | Lost 3 parts (1p2w) 48841 | -4/Garrison | Lost 4 parts (4n) 49054 | -4/Garrison | Core integrity fell below 50% 49064 | -4/Garrison | Destroyed B-86 Titan 49079 | -4/Garrison | Triggered checkpoint 49103 | -4/Garrison | Released all parts (6) 49105 | -4/Garrison | Core integrity fell below 20% 49108 | -4/Garrison | Triggered checkpoint 49112 | -4/Garrison | Destroyed by S-27 Virus with Autogun Last Messages --------------- Rerouting network defenses. Erasing system data. Installing primary routines, ETC: 6. 49096_ Virus 7a destroyed. 49096_ Enh. Nova Cannon destroyed. 49098_ Acquired Wheel. 49101_ RIF reveals location of phase wall. 49103_ System corrupted: Component data lost. 49103_ Wheel destroyed. 49103_ Released Adv. Remote Datajack. 49103_ Released Quantum Capacitor. 49103_ Released Relay Coupler [Sentry]. 49103_ Released Huge Storage Unit. 49103_ Released Adv. Target Analyzer. 49103_ Released Relay Coupler [Swarmer]. 49103_ RIF reveals location of phase wall. 49104_ Critical hit (Burn: +50). 49105_ Extracted 69 matter. 49106_ RIF reveals location of phase wall. 49108_ Beams of light sweep through the air. An alarm sounds. Map ----- +----------------------------------------------------+ | ?????????????????????????????????????????????????? | | ?????????????????????????????????????????????????? | | ?????????????????????????????????????????????????? | | ?????????????????????????????????????????????????? | | ?????????????????????????????????????????????????? | | ?????????????????????????????????????????????????? | | ?????????????????????????????????????????????????? | | ?????????????????????????????????????????????????? | | ?????????????????????????????????????????????????? | | ?????????????????????????????????????????????????? | | ????????? ??##??????????????????????????????????? | | ???????+ #? ?? ????????????????????????????? | | ???????# # ## ##??????????????????????????? | | ??????## =% #??????????????????????????? | | ?????# % ?????????????????????????? | | ???#?? % *= ??????????????????????????? | | ???# ?? %= # #??????????????????????????? | | ???# ### # ##?????????????????????????? | | ???? ?????????????????????????? | | ?????# %! ?????????????????????????? | | ?????#*%= ^ *%= ??????????????????????????? | | ?????? ! ^ = ??????????????????????????? | | #??????# " ## #??????????????????????????? | | ######## ;; ## #################??????????? | | + !! s ????????? | | + |!!]! g @ #???????????????? | | ####### !!|!! g +???????????????? | | #?????# !!#]g ##++####+#### #???????????????? | | ##????# !#! #?????????????? #???????????????? | | "###### #######???????????????????????????????? | | + #?????????????????????????????????????? | | ######" #?????????????????????????????????????? | | #????## #?????????????????????????????????????? | | #????## #?????????????????????????????????????? | | +######" #?????????????????????????????????????? | | % #?????????????????????????????????????? | | #?????????????????????????????????????? | | #?????????????????????????????????????? | | #######+""#?????????????????????????????????????? | | ^###???# ###?????????????????????????????????????? | | ##### #???????????????????????????????????????? | | + #???????????????????????????????????????? | | #####+#???????????????????????????????????????? | | ###???# #???????????????????????????????????????? | | #?????# #??????????????????????????????????????? | | #?????# #??????????????????????????????????????? | | ###???####??????????????????????????????????????? | | #"#?????????????????????????????????????????????? | | "#?????????????????????????????????????????????? | | ! #?????????????????????????????????????????????? | +----------------------------------------------------+ Best States ------------- Heat Dissipation 93 Coolant Potential 100 Energy Generation 77 Energy Capacity 850 Matter Stores 300 Matter Capacity 350 Sight Range 16 Terrain Scan Density 10 Jamming Range 14 Power Amplification 30 Additional Mass Support 12 Armor Coverage 1200 Resistance: KI 40 Resistance: TH 15 Resistance: EM 15 Point Defense Rating 240 Evasion (%) 50 Targeting Accuracy 16 Target Analysis 8 Recoil Reduction 7 Salvage Targeting 4 Defensive Hacking 10 Relay Coupler Types 3 Relay Coupler Value 79 Item Schematics ----------------- None Robot Schematics ------------------ None Fabricated ------------ Nothing Alien Tech Used ----------------- None Achievements -------------- None Challenges ------------ None Game ------ Seed HardlightAdvancedCloak Manual? 0 Play Time 06:34:41 Cumulative 547.7 hours Start 2023.06.22 @ 20:06:58 End 2023.06.23 @ 20:40:27 Sessions 11 Manual Loads 0 Difficulty Rogue Special Mode None Game No. 381 Rogue 381 Adventurer 0 Explorer 0 Win Type - Total 17 Types 9/3/1/0/0/1/2/1/0 Lore% 79 Gallery% 90 Achievement% 79 Wizard Run 0 Options --------- ASCII 0 Keyboard 0 Movement Numpad Keybinds 0 Fullscreen 2 Font 24/Terminus Map View 76x50 Tactical HUD 1 Map Filters NONE Filters NONE Steam 1 RUN: 0188713b-fd6b-4982-8204-196f972a315d